fUST/lending_fUST_20251231
["ID","MTS","AMOUNT","RATE_DAILY","PERIOD"]
[400121620,1767135150588,150.0,0.00012152,2]
[400121621,1767135151037,150.0,0.00012731,2]
[400121625,1767135205319,445.688,0.000285,120]
[400121626,1767135227447,228.53,0.00012172,2]
[400121627,1767135228342,457.05,0.00012752,2]
[400121628,1767135307692,219.8,0.00012173,2]
[400121629,1767135308170,439.6,0.00012753,2]
[400121630,1767135309756,171.92171624,0.00025277,120]
[400121631,1767135386611,211.41,0.000122,2]
[400121632,1767135467503,208.72,0.0001218,2]
[400121633,1767135467919,417.43,0.0001276,2]
[400121634,1767135546786,200.75,0.00012172,2]
[400121635,1767135547207,401.5,0.00012752,2]
[400121636,1767135625662,21.13806241,0.00012243,2]
[400121637,1767135625687,171.94193759,0.00012243,2]
[400121638,1767135704825,190.63,0.00012188,2]
[400121639,1767135705270,381.25,0.00012768,2]
[400121640,1767135728078,227.00883527,0.00025248,120]
[400121641,1767135783705,183.35,0.00012202,2]
[400121661,1767135863086,185.46,0.00012231,2]
[400121662,1767135943304,183.1,0.00012228,2]
[400121663,1767136023734,180.77,0.0001222,2]
[400121665,1767136103441,178.47,0.00012215,2]
[400121666,1767136104254,-356.94,0.00012797,2]
[400121667,1767136104278,-231.69814697,0.00012857,2]
[400121668,1767136104311,-419.61888068,0.00012859,2]
[400121669,1767136106828,-205.80722223,0.00012859,2]
[400121670,1767136110075,-503.11240054,0.00012859,2]
[400121671,1767136113832,-218.71,0.00012858,2]
[400121672,1767136115319,-281.29,0.00012858,2]
[400121673,1767136115345,-24.62703775,0.00012858,2]
[400121674,1767136115668,976.28369782,0.00012771,2]
[400121675,1767136117332,1585.9682029,0.00011955,2]
[400121676,1767136117939,-221.47389519,0.00012858,2]
[400121677,1767136120527,-222.83310953,0.00012858,2]
[400121678,1767136123371,-322.01555826,0.00012858,2]
[400121679,1767136126812,-155.7024382,0.00012858,2]
[400121680,1767136139027,1446.65203893,0.00012771,2]
[400121681,1767136155132,-300.0,0.00012857,2]
[400121682,1767136155152,-295.0,0.00012857,2]
[400121683,1767136155174,-1181.43591033,0.00012858,2]
[400121684,1767136155197,-1855.72030334,0.00012858,2]
[400121685,1767136180970,171.65,0.00012222,2]
[400121733,1767136232467,-343.31,0.00012804,2]
[400121735,1767136232477,-601.0,0.00012804,2]
[400121737,1767136232487,-227.06418403,0.00012831,2]
[400121739,1767136232497,-300.0,0.00012857,2]
[400121741,1767136232507,-300.0,0.00012857,2]
[400121743,1767136232517,-1200.0,0.00012857,2]
[400121745,1767136232527,-500.0,0.00012858,2]
[400121747,1767136232541,-50000.0,0.00012858,2]
[400121749,1767136232550,-272.36764592,0.00012858,2]
[400121751,1767136232560,-500.0,0.00012858,2]
[400121753,1767136232571,-2128.08794926,0.00012858,2]
[400121755,1767136232580,-2128.08794926,0.00012858,2]
[400121757,1767136232590,-2128.08794926,0.00012858,2]
[400121759,1767136232600,-2128.08794926,0.00012858,2]
[400121761,1767136232609,-500.0,0.00012858,2]
[400121763,1767136232619,-2128.08794926,0.00012858,2]
[400121765,1767136232628,-264.66745097,0.00012858,2]
[400121767,1767136232637,-2128.08794926,0.00012858,2]
[400121769,1767136232646,-437.38828455,0.00012858,2]
[400121771,1767136232656,-2128.08794926,0.00012858,2]
[400121773,1767136232666,-500.0,0.00012858,2]
[400121775,1767136232675,-614.00374773,0.00012858,2]
[400121777,1767136232684,-500.0,0.00012858,2]
[400121778,1767136232693,-500.0,0.00012858,2]
[400121780,1767136232703,-520.75550584,0.00012858,2]
[400121782,1767136232712,-329.3902901,0.00012858,2]
[400121784,1767136232722,-500.0,0.00012858,2]
[400121786,1767136232731,-187.7624438,0.00012858,2]
[400121788,1767136232741,-500.0,0.00012858,2]
[400121790,1767136232752,-500.0,0.00012858,2]
[400121792,1767136232763,-500.0,0.00012858,2]
[400121794,1767136232773,-500.0,0.00012858,2]
[400121796,1767136232783,-500.0,0.00012858,2]
[400121798,1767136232793,-500.0,0.00012858,2]
[400121800,1767136232803,-358.80947209,0.00012858,2]
[400121802,1767136232814,-500.0,0.00012858,2]
[400121804,1767136232824,-2128.08794926,0.00012858,2]
[400121806,1767136232833,-2128.08794926,0.00012858,2]
[400121807,1767136232843,-500.0,0.00012858,2]
[400121809,1767136232852,-500.0,0.00012858,2]
[400121811,1767136232861,-500.0,0.00012858,2]
[400121814,1767136232871,-500.0,0.00012858,2]
[400121815,1767136232880,-517.44954891,0.00012858,2]
[400121817,1767136232889,-500.0,0.00012858,2]
[400121819,1767136232898,-2140.60611366,0.00012858,2]
[400121821,1767136232908,-2140.60611366,0.00012858,2]
[400121824,1767136232918,-2140.60611366,0.00012858,2]
[400121825,1767136232927,-2140.60611366,0.00012858,2]
[400121827,1767136232936,-2140.60611366,0.00012858,2]
[400121829,1767136232946,-2140.60611366,0.00012858,2]
[400121831,1767136232955,-2140.60611366,0.00012858,2]
[400121833,1767136232964,-2140.60611366,0.00012858,2]
[400121835,1767136232973,-2140.60611366,0.00012858,2]
[400121837,1767136232982,-2140.60611366,0.00012858,2]
[400121839,1767136232991,-2427.44733291,0.00012858,2]
[400121841,1767136233000,-2427.44733291,0.00012858,2]
[400121843,1767136233011,-2427.44733291,0.00012858,2]
[400121845,1767136233020,-2427.44733291,0.00012858,2]
[400121847,1767136233029,-2427.44733291,0.00012858,2]
[400121849,1767136233039,-1820.58549967,0.00012858,2]
[400121851,1767136233048,-128764.09921318,0.00012859,2]
[400121854,1767136233063,-385.80856207,0.00012859,2]
[400121856,1767136233075,-1331.21619743,0.00012859,2]
[400121858,1767136233086,-398.74315297,0.00012859,2]
[400121989,1767136238565,-867991.5943709,0.00012859,2]
[400121991,1767136238575,-1200.0,0.00012899,2]
[400121993,1767136238585,-1183.18785316,0.000129,2]
[400121995,1767136238595,-516.86051454,0.00012954,2]
[400121997,1767136238604,-268.642,0.00012955,2]
[400121999,1767136238616,-183.75143185,0.00012955,2]
[400122000,1767136238625,-151.0,0.00013,2]
[400122001,1767136238635,-151.0,0.00013,2]
[400122002,1767136238645,-151.0,0.00013,2]
[400122003,1767136238655,-151.0,0.00013,2]
[400122004,1767136238665,-151.0,0.00013,2]
[400122005,1767136238675,-151.0,0.00013,2]
[400122006,1767136238685,-300.0,0.00013218,2]
[400122007,1767136238695,-300.0,0.00013218,2]
[400122009,1767136238705,-300.0,0.00013218,2]
[400122011,1767136238716,-300.0,0.00013218,2]
[400122012,1767136238725,-300.0,0.00013218,2]
[400122013,1767136238735,-300.0,0.00013218,2]
[400122014,1767136238745,-300.0,0.00013218,2]
[400122015,1767136238756,-300.0,0.00013218,2]
[400122016,1767136238765,-300.0,0.00013218,2]
[400122017,1767136238775,-300.0,0.00013218,2]
[400122018,1767136238784,-300.0,0.00013218,2]
[400122019,1767136238794,-300.0,0.00013218,2]
[400122020,1767136238807,-300.0,0.00013218,2]
[400122021,1767136238816,-300.0,0.00013218,2]
[400122022,1767136238826,-300.0,0.00013218,2]
[400122023,1767136238836,-600.0,0.00013218,2]
[400122024,1767136238845,-500.0,0.00013273,2]
[400122025,1767136238855,-500.0,0.00013273,2]
[400122026,1767136238864,-500.0,0.00013273,2]
[400122027,1767136238874,-500.0,0.00013273,2]
[400122028,1767136238884,-500.0,0.00013273,2]
[400122029,1767136238894,-500.0,0.00013273,2]
[400122030,1767136238904,-217.77534712,0.00013273,2]
[400122031,1767136238914,-500.0,0.00013273,2]
[400122032,1767136238924,-500.15325233,0.00013273,2]
[400122033,1767136238934,-283.15409111,0.00013273,2]
[400122034,1767136238944,-500.0,0.00013273,2]
[400122035,1767136238954,-500.0,0.00013273,2]
[400122036,1767136238963,-165.40870093,0.00013273,2]
[400122037,1767136238973,-500.0,0.00013273,2]
[400122038,1767136238983,-500.0,0.00013273,2]
[400122039,1767136238993,-500.0,0.00013273,2]
[400122040,1767136239003,-500.0,0.00013273,2]
[400122041,1767136239013,-500.0,0.00013273,2]
[400122042,1767136239023,-500.0,0.00013273,2]
[400122043,1767136239033,-500.0,0.00013273,2]
[400122044,1767136239043,-500.0,0.00013273,2]
[400122045,1767136239053,-500.0,0.00013273,2]
[400122046,1767136239062,-500.0,0.00013273,2]
[400122047,1767136239071,-500.0,0.00013273,2]
[400122048,1767136239081,-500.0,0.00013273,2]
[400122049,1767136239091,-500.0,0.00013273,2]
[400122050,1767136239101,-500.0,0.00013273,2]
[400122051,1767136239111,-465.37686128,0.00013273,2]
[400122052,1767136239124,-500.55170221,0.00013273,2]
[400122053,1767136239134,-500.0,0.00013273,2]
[400122054,1767136239145,-500.0,0.00013273,2]
[400122055,1767136239155,-605.28720895,0.00013273,2]
[400122056,1767136239166,-500.0,0.00013273,2]
[400122057,1767136239176,-500.0,0.00013273,2]
[400122058,1767136239185,-500.0,0.00013273,2]
[400122059,1767136239195,-500.26362116,0.00013273,2]
[400122060,1767136239205,-500.0,0.00013273,2]
[400122061,1767136239214,-500.0,0.00013273,2]
[400122062,1767136239223,-500.0,0.00013273,2]
[400122063,1767136239232,-500.0,0.00013273,2]
[400122064,1767136239242,-500.0,0.00013273,2]
[400122065,1767136239251,-238.68810806,0.00013273,2]
[400122066,1767136239261,-500.0,0.00013273,2]
[400122067,1767136239270,-500.0,0.00013273,2]
[400122068,1767136239280,-268.5150951,0.00013273,2]
[400122069,1767136239289,-535.90784509,0.00013273,2]
[400122070,1767136239299,-500.0,0.00013273,2]
[400122071,1767136239308,-500.0,0.00013273,2]
[400122072,1767136239317,-500.0,0.00013273,2]
[400122073,1767136239326,-500.0,0.00013273,2]
[400122074,1767136239336,-171.46724049,0.00013273,2]
[400122075,1767136239345,-500.0,0.00013273,2]
[400122076,1767136239355,-500.0,0.00013273,2]
[400122077,1767136239363,-500.0,0.00013273,2]
[400122078,1767136239373,-158.33685068,0.00013273,2]
[400122079,1767136239382,-500.41782704,0.00013273,2]
[400122080,1767136239392,-185.30799155,0.00013273,2]
[400122081,1767136239401,-500.0,0.00013273,2]
[400122082,1767136239411,-270.09084155,0.00013273,2]
[400122083,1767136239420,-500.0,0.00013273,2]
[400122084,1767136239430,-500.0,0.00013273,2]
[400122085,1767136239439,-500.0,0.00013273,2]
[400122086,1767136239449,-159.20798876,0.00013273,2]
[400122087,1767136239458,-500.0,0.00013273,2]
[400122088,1767136239467,-500.0,0.00013273,2]
[400122089,1767136239477,-500.0,0.00013273,2]
[400122090,1767136239487,-210.52500245,0.00013273,2]
[400122091,1767136239496,-500.0,0.00013273,2]
[400122092,1767136239505,-500.0,0.00013273,2]
[400122093,1767136239515,-500.0,0.00013273,2]
[400122094,1767136239525,-500.0,0.00013273,2]
[400122095,1767136239536,-500.0,0.00013273,2]
[400122096,1767136239546,-500.0,0.00013273,2]
[400122097,1767136239555,-153.38,0.00013273,2]
[400122098,1767136239565,-514.96,0.00013386,2]
[400122099,1767136239575,-1183.18785316,0.00013417,2]
[400122100,1767136239585,-10046.3898032,0.0001354,2]
[400122101,1767136239694,-153.4,0.00013547,2]
[400122102,1767136239705,-9973.34471741,0.00013562,2]
[400122103,1767136239715,-300.0,0.00013673,2]
[400122104,1767136239724,-350.01,0.00013681,2]
[400122105,1767136239733,-500.0,0.00013698,2]
[400122106,1767136239743,-500.0,0.00013698,2]
[400122107,1767136239753,-500.0,0.00013698,2]
[400122108,1767136239762,-500.0,0.00013698,2]
[400122109,1767136239771,-507.59575154,0.00013698,2]
[400122110,1767136239780,-500.0,0.00013698,2]
[400122111,1767136239789,-500.0,0.00013698,2]
[400122112,1767136239799,-500.0,0.00013698,2]
[400122113,1767136239808,-500.0,0.00013698,2]
[400122114,1767136239817,-500.0,0.00013698,2]
[400122115,1767136239826,-528.98647481,0.00013698,2]
[400122116,1767136239835,-500.0,0.00013698,2]
[400122117,1767136239844,-500.0,0.00013698,2]
[400122118,1767136239853,-500.0,0.00013698,2]
[400122119,1767136239863,-500.0,0.00013698,2]
[400122120,1767136239872,-500.0,0.00013698,2]
[400122121,1767136239881,-528.29778119,0.00013698,2]
[400122122,1767136239890,-500.0,0.00013698,2]
[400122123,1767136239899,-500.0,0.00013698,2]
[400122124,1767136239909,-500.0,0.00013698,2]
[400122125,1767136239918,-500.0,0.00013698,2]
[400122126,1767136239927,-500.0,0.00013698,2]
[400122127,1767136239936,-500.0,0.00013698,2]
[400122128,1767136239945,-509.74606026,0.00013698,2]
[400122129,1767136239954,-500.0,0.00013698,2]
[400122130,1767136239963,-500.0,0.00013698,2]
[400122131,1767136239972,-513.22996032,0.00013698,2]
[400122132,1767136239981,-458.51216997,0.00013698,2]
[400122133,1767136239991,-308.96684295,0.00013698,2]
[400122134,1767136240000,-1378.39,0.00013698,2]
[400122135,1767136240009,-1378.39,0.00013698,2]
[400122136,1767136240019,-1378.39,0.00013698,2]
[400122137,1767136240028,-1378.39,0.00013698,2]
[400122138,1767136240037,-1378.39,0.00013698,2]
[400122139,1767136240047,-1378.39,0.00013698,2]
[400122140,1767136240056,-1378.39,0.00013698,2]
[400122141,1767136240066,-1378.39,0.00013698,2]
[400122142,1767136240075,-1378.39,0.00013698,2]
[400122143,1767136240084,-1378.39,0.00013698,2]
[400122144,1767136240094,-1378.39,0.00013698,2]
[400122145,1767136240103,-1378.39,0.00013698,2]
[400122146,1767136240113,-1378.39,0.00013698,2]
[400122147,1767136240122,-1378.39,0.00013698,2]
[400122148,1767136240131,-1378.39,0.00013698,2]
[400122149,1767136240140,-1378.39,0.00013698,2]
[400122150,1767136240150,-1378.39,0.00013698,2]
[400122151,1767136240159,-1378.39,0.00013698,2]
[400122152,1767136240169,-1378.39,0.00013698,2]
[400122153,1767136240178,-1378.39,0.00013698,2]
[400122154,1767136240187,-1378.39,0.00013698,2]
[400122155,1767136240196,-1378.39,0.00013698,2]
[400122156,1767136240205,-1378.39,0.00013698,2]
[400122157,1767136240215,-1378.44756015,0.00013698,2]
[400122158,1767136240224,-2212.92,0.00013698,2]
[400122159,1767136240234,-2212.92,0.00013698,2]
[400122160,1767136240243,-2212.92,0.00013698,2]
[400122161,1767136240252,-2212.92,0.00013698,2]
[400122162,1767136240261,-2212.92,0.00013698,2]
[400122163,1767136240271,-2212.92,0.00013698,2]
[400122164,1767136240281,-2212.92,0.00013698,2]
[400122165,1767136240290,-2212.92,0.00013698,2]
[400122168,1767136240299,-2212.92,0.00013698,2]
[400122170,1767136240308,-2212.92,0.00013698,2]
[400122171,1767136240317,-2212.92,0.00013698,2]
[400122172,1767136240326,-2212.92,0.00013698,2]
[400122173,1767136240335,-2212.92,0.00013698,2]
[400122174,1767136240344,-2212.92,0.00013698,2]
[400122175,1767136240353,-2212.92,0.00013698,2]
[400122176,1767136240362,-2212.92,0.00013698,2]
[400122177,1767136240372,-2212.92,0.00013698,2]
[400122179,1767136240381,-2212.92,0.00013698,2]
[400122181,1767136240390,-2212.92,0.00013698,2]
[400122183,1767136240399,-2212.92,0.00013698,2]
[400122185,1767136240409,-2212.92,0.00013698,2]
[400122187,1767136240418,-2212.92,0.00013698,2]
[400122189,1767136240427,-2212.92,0.00013698,2]
[400122190,1767136240436,-2213.07941593,0.00013698,2]
[400122192,1767136240446,-622.81491526,0.00013698,2]
[400122194,1767136240455,-462.39716455,0.00013698,2]
[400122196,1767136240464,-500.0,0.00013698,2]
[400122198,1767136240474,-500.0,0.00013698,2]
[400122200,1767136240483,-500.0,0.00013698,2]
[400122202,1767136240492,-500.0,0.00013698,2]
[400122203,1767136240502,-500.0,0.00013698,2]
[400122204,1767136240511,-230.05403968,0.00013698,2]
[400122206,1767136240520,-1000.0,0.00013699,2]
[400122208,1767136240530,-15153.3608427,0.00013699,2]
[400122209,1767136240542,-565.47719136,0.00013699,2]
[400122211,1767136240552,-500.0,0.00013699,2]
[400122213,1767136240561,-500.0,0.00013699,2]
[400122215,1767136240571,-500.0,0.00013699,2]
[400122217,1767136240582,-500.0,0.00013699,2]
[400122219,1767136240591,-500.0,0.00013699,2]
[400122220,1767136240600,-510.33806414,0.00013699,2]
[400122222,1767136240611,-165.01125145,0.00013699,2]
[400122224,1767136240620,-500.0,0.00013699,2]
[400122226,1767136240629,-500.0,0.00013699,2]
[400122227,1767136240638,-500.0,0.00013699,2]
[400122229,1767136240647,-500.0,0.00013699,2]
[400122231,1767136240656,-500.0,0.00013699,2]
[400122233,1767136240665,-500.0,0.00013699,2]
[400122234,1767136240674,-500.0,0.00013699,2]
[400122236,1767136240683,-500.0,0.00013699,2]
[400122238,1767136240693,-500.0,0.00013699,2]
[400122240,1767136240701,-500.0,0.00013699,2]
[400122242,1767136240711,-500.0,0.00013699,2]
[400122244,1767136240720,-500.0,0.00013699,2]
[400122245,1767136240729,-500.0,0.00013699,2]
[400122247,1767136240738,-500.0,0.00013699,2]
[400122249,1767136240747,-500.0,0.00013699,2]
[400122250,1767136240756,-500.0,0.00013699,2]
[400122252,1767136240766,-500.0,0.00013699,2]
[400122254,1767136240775,-500.0,0.00013699,2]
[400122255,1767136240784,-500.0,0.00013699,2]
[400122257,1767136240793,-500.0,0.00013699,2]
[400122259,1767136240802,-158.36952314,0.00013699,2]
[400122260,1767136240811,-500.0,0.00013699,2]
[400122262,1767136240820,-500.0,0.00013699,2]
[400122264,1767136240829,-500.96223077,0.00013699,2]
[400122266,1767136240838,-500.0,0.00013699,2]
[400122268,1767136240847,-303.89032642,0.00013699,2]
[400122269,1767136240856,-500.0,0.00013699,2]
[400122271,1767136240865,-500.0,0.00013699,2]
[400122273,1767136240873,-500.0,0.00013699,2]
[400122274,1767136240882,-500.0,0.00013699,2]
[400122276,1767136240891,-500.0,0.00013699,2]
[400122278,1767136240900,-500.0,0.00013699,2]
[400122280,1767136240909,-500.0,0.00013699,2]
[400122282,1767136240919,-159.65835704,0.00013699,2]
[400122283,1767136240928,-500.0,0.00013699,2]
[400122285,1767136240937,-500.0,0.00013699,2]
[400122287,1767136240946,-346.40609212,0.00013699,2]
[400122289,1767136240955,-500.0,0.00013699,2]
[400122291,1767136240964,-500.0,0.00013699,2]
[400122293,1767136240973,-500.0,0.00013699,2]
[400122295,1767136240982,-158.08534046,0.00013699,2]
[400122297,1767136240991,-500.0,0.00013699,2]
[400122299,1767136241000,-500.0,0.00013699,2]
[400122300,1767136241010,-500.0,0.00013699,2]
[400122302,1767136241019,-500.0,0.00013699,2]
[400122304,1767136241028,-500.0,0.00013699,2]
[400122306,1767136241037,-525.6894208,0.00013699,2]
[400122308,1767136241047,-500.0,0.00013699,2]
[400122310,1767136241056,-500.17663948,0.00013699,2]
[400122312,1767136241066,-365.77699845,0.00013699,2]
[400122314,1767136241074,-440.83623024,0.00013699,2]
[400122315,1767136241083,-318.65909539,0.00013699,2]
[400122317,1767136241093,-500.0,0.00013699,2]
[400122319,1767136241102,-307.55036025,0.00013699,2]
[400122321,1767136241111,-500.0,0.00013699,2]
[400122323,1767136241120,-500.0,0.00013699,2]
[400122325,1767136241129,-500.0,0.00013699,2]
[400122327,1767136241138,-343.55118679,0.00013699,2]
[400122328,1767136241147,-500.0,0.00013699,2]
[400122330,1767136241156,-500.0,0.00013699,2]
[400122331,1767136241165,-500.35999575,0.00013699,2]
[400122333,1767136241174,-500.0,0.00013699,2]
[400122335,1767136241183,-500.0,0.00013699,2]
[400122337,1767136241192,-500.0,0.00013699,2]
[400122339,1767136241201,-500.0,0.00013699,2]
[400122340,1767136241210,-500.0,0.00013699,2]
[400122342,1767136241219,-500.0,0.00013699,2]
[400122344,1767136241228,-500.0,0.00013699,2]
[400122346,1767136241237,-500.0,0.00013699,2]
[400122347,1767136241246,-500.0,0.00013699,2]
[400122349,1767136241256,-500.0,0.00013699,2]
[400122351,1767136241265,-500.0,0.00013699,2]
[400122353,1767136241274,-163.63597044,0.00013699,2]
[400122355,1767136241283,-500.0,0.00013699,2]
[400122357,1767136241293,-500.0,0.00013699,2]
[400122359,1767136241302,-267.37089605,0.00013699,2]
[400122360,1767136241312,-500.0,0.00013699,2]
[400122362,1767136241321,-500.0,0.00013699,2]
[400122364,1767136241331,-500.0,0.00013699,2]
[400122366,1767136241340,-752.6440564,0.000138,2]
[400122368,1767136241349,-1000.0,0.00013821,2]
[400122370,1767136241359,-1000.0,0.00013821,2]
[400122372,1767136241368,-676.8974901,0.00013821,2]
[400122374,1767136241377,-330.83728204,0.00013821,2]
[400122375,1767136241387,-519.80046235,0.00013821,2]
[400122378,1767136241397,-1000.0,0.00013821,2]
[400122379,1767136241406,-1000.0,0.00013821,2]
[400122381,1767136241417,-880.82741627,0.00013821,2]
[400122383,1767136241426,-852.44139576,0.00013821,2]
[400122385,1767136241436,-1000.0,0.00013821,2]
[400122387,1767136241445,-1000.0,0.00013821,2]
[400122389,1767136241455,-500.61848395,0.00013821,2]
[400122398,1767136241543,-1000.0,0.00013821,2]
[400122400,1767136241552,-500.51187945,0.00013821,2]
[400122402,1767136241562,-1000.0,0.00013821,2]
[400122404,1767136241572,-1000.0,0.00013821,2]
[400122406,1767136241582,-1000.0,0.00013821,2]
[400122408,1767136241592,-1000.0,0.00013821,2]
[400122410,1767136241601,-1000.0,0.00013821,2]
[400122411,1767136241612,-1000.0,0.00013821,2]
[400122413,1767136241621,-500.65462418,0.00013821,2]
[400122415,1767136241631,-923.90584784,0.00013821,2]
[400122417,1767136241640,-1000.0,0.00013821,2]
[400122419,1767136241649,-1000.0,0.00013821,2]
[400122421,1767136241659,-1000.0,0.00013821,2]
[400122423,1767136241668,-1000.0,0.00013821,2]
[400122424,1767136241678,-1000.0,0.00013821,2]
[400122426,1767136241687,-1000.0,0.00013821,2]
[400122428,1767136241696,-1000.0,0.00013821,2]
[400122430,1767136241705,-529.57538183,0.00013821,2]
[400122432,1767136241714,-1000.0,0.00013821,2]
[400122434,1767136241723,-1000.0,0.00013821,2]
[400122436,1767136241733,-1000.0,0.00013821,2]
[400122438,1767136241742,-1000.0,0.00013821,2]
[400122440,1767136241751,-1000.0,0.00013821,2]
[400122442,1767136241760,-1000.0,0.00013821,2]
[400122444,1767136241770,-1000.0,0.00013821,2]
[400122446,1767136241779,-1000.0,0.00013821,2]
[400122448,1767136241788,-1000.0,0.00013821,2]
[400122449,1767136241798,-1000.0,0.00013821,2]
[400122451,1767136241807,-1000.0,0.00013821,2]
[400122453,1767136241816,-493.85504608,0.00013821,2]
[400122455,1767136241826,-499.76525701,0.00013821,2]
[400122457,1767136241834,-459.70529653,0.00013821,2]
[400122459,1767136241844,-1000.0,0.00013821,2]
[400122461,1767136241853,-1000.0,0.00013821,2]
[400122463,1767136241862,-1000.0,0.00013821,2]
[400122465,1767136241870,-1000.0,0.00013821,2]
[400122467,1767136241879,-1000.0,0.00013821,2]
[400122469,1767136241888,-1000.0,0.00013821,2]
[400122471,1767136241898,-1000.0,0.00013821,2]
[400122473,1767136241907,-1000.0,0.00013821,2]
[400122475,1767136241916,-500.8149509,0.00013821,2]
[400122476,1767136241925,-205.15331255,0.00013821,2]
[400122478,1767136241935,-153.0,0.000139,2]
[400122480,1767136241945,-153.0,0.000139,2]
[400122482,1767136241954,-153.0,0.000139,2]
[400122484,1767136241963,-153.0,0.000139,2]
[400122486,1767136241973,-153.0,0.000139,2]
[400122487,1767136241982,-153.0,0.000139,2]
[400122489,1767136241992,-153.0,0.000139,2]
[400122491,1767136242001,-153.0,0.000139,2]
[400122493,1767136242010,-153.0,0.000139,2]
[400122495,1767136242019,-153.0,0.000139,2]
[400122497,1767136242028,-153.0,0.000139,2]
[400122499,1767136242037,-153.0,0.000139,2]
[400122500,1767136242046,-153.0,0.000139,2]
[400122502,1767136242055,-153.0,0.000139,2]
[400122504,1767136242064,-153.0,0.000139,2]
[400122506,1767136242073,-153.0,0.000139,2]
[400122508,1767136242083,-153.0,0.000139,2]
[400122510,1767136242091,-153.0,0.000139,2]
[400122512,1767136242101,-1183.18785316,0.00013934,2]
[400122514,1767136242110,-686.61,0.00013968,2]
[400122515,1767136242119,-420.0,0.00014101,2]
[400122517,1767136242129,-1680.0,0.00014142,2]
[400122519,1767136242137,-176.0,0.00014147,2]
[400122521,1767136242147,-500.0,0.00014219,2]
[400122523,1767136242156,-500.0,0.00014219,2]
[400122524,1767136242165,-500.0,0.00014219,2]
[400122526,1767136242175,-500.0,0.00014219,2]
[400122528,1767136242184,-500.0,0.00014219,2]
[400122530,1767136242193,-500.0,0.00014219,2]
[400122532,1767136242203,-505.79636351,0.00014219,2]
[400122534,1767136242213,-600.0,0.00014221,2]
[400122536,1767136242223,-1000.0,0.00014247,2]
[400122538,1767136242232,-1000.0,0.00014247,2]
[400122540,1767136242241,-1000.0,0.00014247,2]
[400122542,1767136242250,-908.24491784,0.00014247,2]
[400122544,1767136242259,-1000.0,0.00014247,2]
[400122545,1767136242269,-1000.0,0.00014247,2]
[400122546,1767136242278,-1000.0,0.00014247,2]
[400122548,1767136242288,-1000.0,0.00014247,2]
[400122550,1767136242297,-1000.0,0.00014247,2]
[400122552,1767136242306,-536.35203428,0.00014247,2]
[400122553,1767136242316,-1000.0,0.00014247,2]
[400122554,1767136242325,-1000.0,0.00014247,2]
[400122555,1767136242334,-1000.0,0.00014247,2]
[400122556,1767136242343,-1000.0,0.00014247,2]
[400122557,1767136242353,-1000.0,0.00014247,2]
[400122558,1767136242362,-1000.0,0.00014247,2]
[400122559,1767136242371,-1000.0,0.00014247,2]
[400122560,1767136242380,-1000.0,0.00014247,2]
[400122561,1767136242389,-1000.0,0.00014247,2]
[400122562,1767136242399,-1000.0,0.00014247,2]
[400122563,1767136242408,-1000.0,0.00014247,2]
[400122564,1767136242418,-1000.0,0.00014247,2]
[400122565,1767136242427,-911.70387957,0.00014247,2]
[400122566,1767136242437,-1000.0,0.00014247,2]